bitfinex/quotes_ETHUSD_20240827
["timestamp","ask_amount","ask_price","bid_price","bid_amount"]
[1724766118941,0.24262,2621.1,2619.9,2.4932]
[1724766118942,3.81638,2620.3,2619.9,2.4932]
[1724766119146,3.81666,2620.1,2619.6,2.4932]
[1724766119345,3.81666,2620.1,2619.6,5.4932]
[1724766119737,3.81666,2620.1,2619.6,2.4932]
[1724766119941,3.81698,2619.9,2619.3,3.81767]
[1724766120122,3.81712,2619.8,2619.2,6.07657]
[1724766120490,3.81712,2619.8,2618.8,2.2587]
[1724766120491,0.381712,2619.8,2618.8,2.2587]
[1724766120643,3.81746,2619.6,2619.0,3.81815]
[1724766121188,4.198862,2619.8,2619.2,3.81786]
[1724766121481,3.81696,2619.9,2619.3,3.89404637]
[1724766121841,3.8171,2619.8,2619.0,7.63632]
[1724766122062,3.8175,2619.6,2619.0,7.63632]
[1724766122245,3.8175,2619.6,2619.0,3.81816]
[1724766122446,3.8175,2619.6,2619.1,3.81808]
[1724766122647,3.81808,2619.2,2618.6,11.11875]
[1724766122851,0.381808,2619.1,2618.5,2.4695]
[1724766123083,3.81802,2619.2,2618.7,0.07636535]
[1724766123382,3.81807,2619.2,2618.6,3.8188]
[1724766123543,3.81807,2619.2,2618.7,3.81867]
[1724766124054,3.81794,2619.3,2618.8,0.07636275]
[1724766124280,3.81774,2619.4,2618.8,0.07636275]
[1724766124281,3.81796,2619.2,2618.8,0.07636275]
[1724766124582,3.81774,2619.4,2618.7,3.81867]
[1724766124942,7.63552,2619.4,2618.7,3.81867]
[1724766125140,3.81811,2619.1,2618.5,6.28838]
[1724766125374,7.63633,2619.1,2618.5,6.28838]
[1724766125585,3.8185,2618.9,2618.2,3.0]
[1724766125751,3.81895,2618.6,2617.9,13.46633]
[1724766125953,3.81895,2618.6,2618.0,3.81961]
[1724766126151,7.63789,2618.6,2617.9,14.812963]
[1724766126356,3.81894,2618.6,2617.9,14.812963]
[1724766126546,2.3627,2618.9,2617.6,7.3]
[1724766126752,3.81921,2618.4,2617.6,7.3]
[1724766126979,3.81921,2618.4,2617.7,6.47750481]
[1724766127482,3.81896,2618.6,2617.6,7.3]
[1724766127637,3.81947,2618.2,2617.6,7.3]
[1724766128092,3.81918,2618.4,2617.7,3.82001]
[1724766128296,3.81938,2618.3,2617.7,6.401102]
[1724766129107,3.81896,2618.6,2617.6,7.3]
[1724766129306,3.81938,2618.3,2617.6,7.3]
[1724766129535,3.81966,2618.1,2617.6,7.3]
[1724766129737,3.8198,2618.0,2617.6,7.3]
[1724766129924,3.81966,2618.1,2617.5,2.4305]
[1724766130093,3.81966,2618.1,2617.5,4.28162]
[1724766130295,3.81895,2618.6,2617.9,3.81984]
[1724766130533,3.8187,2618.7,2618.0,0.381984]
[1724766130738,3.81901,2618.5,2617.8,3.81998]
[1724766130939,3.81901,2618.5,2617.9,3.81972]
[1724766131236,3.81915,2618.4,2617.8,1.112007]
[1724766131442,2.3049,2618.6,2617.7,7.3]
[1724766131746,3.81951,2618.2,2617.7,7.3]
[1724766131945,3.81951,2618.2,2617.7,10.366197]
[1724766132439,7.63903,2618.2,2617.7,10.366197]
[1724766132638,3.81951,2618.2,2617.7,14.186317]
[1724766132802,3.81921,2618.4,2617.7,14.186317]
[1724766132999,3.8198,2618.0,2617.3,0.79130767]
[1724766133323,3.8198,2618.0,2617.1,3.82096]
[1724766133324,3.8201,2617.8,2617.1,3.82096]
[1724766133496,3.8201,2617.8,2617.2,0.610646]
[1724766133942,3.81944,2618.2,2617.3,3.897074]
[1724766134107,3.81944,2618.2,2617.6,3.82021]
[1724766134312,4.431611,2618.4,2617.7,0.07639552]
[1724766134313,3.8192,2618.4,2617.7,0.07639552]
[1724766134544,3.8192,2618.4,2617.7,3.89642552]
[1724766134757,3.81928,2618.3,2617.8,3.89635085]
[1724766134973,3.81952,2618.2,2617.7,0.0763893]
[1724766135107,3.81921,2618.4,2617.8,3.81999]
[1724766135489,3.81964,2618.1,2617.4,3.82045]
[1724766135621,3.82037,2617.6,2617.0,3.79130767]
[1724766135954,3.82054,2617.5,2616.9,6.21628]
[1724766136259,7.64105,2617.5,2617.0,1.003763]
[1724766136551,7.64105,2617.5,2616.8,3.82135]
[1724766136552,3.82064,2617.4,2616.8,3.82135]
[1724766136751,3.82073,2617.3,2616.8,3.82135]
[1724766136958,3.82073,2617.3,2616.8,4.825154]
[1724766137124,3.82045,2617.5,2616.8,4.825154]
[1724766137312,3.82045,2617.5,2616.9,3.82123]
[1724766137505,3.82058,2617.4,2616.8,4.825154]
[1724766137813,3.82045,2617.5,2616.9,3.82126]
[1724766138048,3.82023,2617.7,2616.8,1.003804]
[1724766138049,3.82018,2617.7,2616.8,1.003804]
[1724766138253,3.82083,2617.3,2616.6,6.21661]
[1724766138428,7.64168,2617.3,2616.7,4.06102]
[1724766138756,4.96407513,2617.8,2616.4,3.82196]
[1724766138757,3.82126,2617.0,2616.4,3.82196]
[1724766138930,7.64256,2617.0,2616.4,3.82196]
[1724766139137,7.64256,2617.0,2616.3,2.3775]
[1724766139138,3.82126,2617.0,2616.3,2.3775]
[1724766139336,3.82175,2616.6,2616.0,3.82254]
[1724766139720,3.82146,2616.8,2616.0,3.82254]
[1724766139926,4.203356,2617.0,2616.3,3.82209]
[1724766140163,4.203356,2617.0,2616.0,0.620004]
[1724766140164,3.82134,2616.9,2616.4,3.82203]
[1724766140455,3.82134,2616.9,2616.0,0.620004]
[1724766140456,3.82124,2617.0,2616.2,3.82225]
[1724766140677,3.82136,2616.9,2616.3,0.07643451]
[1724766141171,3.82104,2617.1,2616.5,3.82181]
[1724766141374,3.821,2617.2,2616.4,3.82191]
[1724766141574,3.82083,2617.3,2616.6,3.89805928]
[1724766141785,3.82083,2617.3,2616.6,7.71970928]
[1724766141943,3.82066,2617.4,2616.9,3.8213]
[1724766142145,3.82044,2617.5,2616.9,3.8213]
[1724766142476,3.82077,2617.3,2616.7,3.82151]
[1724766142673,3.82077,2617.3,2616.7,4.441415]
[1724766143099,7.64139,2617.4,2616.8,0.07641713]
[1724766143258,7.64135,2617.4,2616.8,0.45178321]
[1724766143460,3.82035,2617.6,2616.8,0.52820038]
[1724766143634,3.82005,2617.8,2617.1,6.14044]
[1724766143830,3.82005,2617.8,2617.2,3.89721773]
[1724766144172,3.82005,2617.8,2617.3,3.82071]
[1724766144376,6.092,2618.2,2617.5,3.82035]
[1724766144674,3.81959,2618.1,2617.5,3.82035]
[1724766144832,3.81971,2618.0,2617.5,0.77174277]
[1724766145034,3.8195,2618.2,2617.5,0.84814319]
[1724766145285,6.11628,2618.6,2617.7,3.82005]
[1724766145286,3.8192,2618.4,2617.7,3.82005]
[1724766145450,3.8192,2618.4,2617.8,0.07639048]
[1724766146451,3.81929,2618.3,2617.7,3.82005]
[1724766146878,0.763849,2618.3,2617.3,3.82063]
[1724766147077,3.81981,2618.0,2617.4,3.0]
[1724766147280,3.82015,2617.7,2617.2,1.00376577]
[1724766147600,3.81981,2618.0,2617.2,1.00376577]
[1724766147801,3.81981,2618.0,2617.1,6.14041]
[1724766147802,3.81981,2618.0,2617.4,3.82049]
[1724766148004,3.81928,2618.3,2617.7,3.82009]
[1724766148188,3.81908,2618.5,2617.8,0.07639458]
[1724766148508,11.26847,2618.9,2618.1,3.81956]
[1724766148678,11.26847,2618.9,2618.1,4.5152948]
[1724766149012,3.81872,2618.7,2618.2,3.81938]
[1724766149305,7.45,2618.9,2618.4,3.81912]
[1724766149608,3.81789,2619.3,2618.5,2.51056902]
[1724766149757,7.63642,2619.1,2618.5,2.51056902]
[1724766149958,3.81819,2619.1,2618.5,6.32939902]
[1724766150354,3.81833,2619.0,2618.5,2.4342]
[1724766150594,3.81841,2618.9,2618.3,3.0]
[1724766150759,3.81817,2619.1,2618.3,6.81917]
[1724766150760,3.81837,2619.0,2618.3,6.81917]
[1724766150959,4.199987,2619.1,2618.3,6.81917]
[1724766151194,3.81817,2619.1,2618.3,6.81917]
[1724766151373,7.53062134,2619.5,2618.9,3.81831]
[1724766151374,6.0989,2619.5,2618.9,3.81831]
[1724766151588,3.81775,2619.4,2618.8,3.81845]
[1724766151791,3.81775,2619.4,2618.6,3.81876]
[1724766151792,3.81789,2619.3,2618.6,3.8187]
[1724766151969,4.488798,2619.3,2618.8,3.81853]
[1724766152170,0.670908,2619.3,2618.4,3.81906]
[1724766152469,4.2668458,2619.2,2618.6,3.81875]
[1724766152966,0.4488658,2619.2,2618.7,3.81868]
[1724766153163,3.81734,2619.7,2618.8,2.53636739]
[1724766153365,3.81734,2619.7,2619.0,3.81815]
[1724766153592,3.81734,2619.7,2619.1,3.89443249]
[1724766154420,6.10558,2619.9,2619.1,3.89443249]
[1724766154582,3.81698,2619.9,2619.1,4.99101041]
[1724766154779,3.81698,2619.9,2619.2,3.81786]
[1724766155006,3.81698,2619.9,2619.3,0.07634782]
[1724766155221,3.81738,2619.6,2619.0,3.81824]
[1724766155431,3.81717,2619.8,2619.1,6.81809]
[1724766155983,3.81717,2619.8,2619.1,3.0]
[1724766156186,3.81743,2619.6,2619.1,3.0]
[1724766156388,3.81688,2620.0,2619.3,3.81768]
[1724766156714,3.81694,2619.9,2619.3,3.81768]
[1724766156914,3.81688,2620.0,2619.3,3.81768]
[1724766157132,3.8172,2619.8,2619.1,3.89434643]
[1724766157316,0.381688,2619.9,2619.3,3.8178]
[1724766157482,0.381688,2619.9,2619.1,3.89434643]
[1724766157483,0.381688,2619.9,2619.1,3.81799]
[1724766157686,3.81687,2620.0,2619.3,3.81772]
[1724766157994,3.81687,2620.0,2619.4,3.89392459]
[1724766158315,3.81651,2620.2,2619.6,3.81725]
[1724766158497,3.81674,2620.1,2619.4,10.10204]
[1724766158682,3.81681,2620.0,2619.4,10.10204]
[1724766158882,3.81681,2620.0,2619.4,6.28446]
[1724766159126,3.81708,2619.8,2619.1,0.81011828]
[1724766159326,3.81746,2619.6,2619.0,9.17366]
[1724766159539,3.81746,2619.6,2619.0,5.3555]
[1724766159826,3.81746,2619.6,2619.0,6.81822]
[1724766160030,3.81746,2619.6,2619.0,6.81816]
[1724766160256,3.81746,2619.6,2619.0,10.63632]
[1724766160257,0.381746,2619.6,2619.0,10.63632]
[1724766160389,3.81731,2619.7,2619.1,3.81807]
[1724766160834,2.3171,2619.9,2618.8,11.11845]
[1724766161133,5.24932134,2619.8,2618.6,3.81875]
[1724766161732,5.24932134,2619.8,2618.5,7.3]
[1724766161930,13.58409,2619.9,2618.6,3.81883]
[1724766161931,3.8178,2619.4,2618.6,3.81883]
[1724766162136,7.45,2619.9,2618.5,7.3]
[1724766162137,3.81752,2619.5,2618.9,3.81827]
[1724766162320,7.63545,2619.4,2618.7,3.81859]
[1724766162521,3.81781,2619.3,2618.7,3.81859]
[1724766162720,3.81766,2619.4,2618.7,3.81859]
[1724766162947,7.63545,2619.4,2618.7,3.81859]
[1724766163253,1.0727822,2619.4,2618.5,11.11885]
[1724766163401,0.628172,2619.5,2618.5,11.11888]
[1724766163402,3.81822,2619.1,2618.5,11.11888]
[1724766163599,3.81819,2619.1,2618.5,11.11888]
[1724766164237,3.81825,2619.0,2618.5,11.11888]
[1724766164442,3.81819,2619.1,2618.5,11.11888]
[1724766164443,7.63639,2619.1,2618.5,3.81888]
[1724766164644,0.763639,2619.1,2618.1,6.25877]
[1724766164853,3.81882,2618.7,2617.9,11.11975]
[1724766165034,2.4757,2619.0,2617.9,11.11975]
[1724766165035,7.63845,2618.4,2617.9,7.3]
[1724766165207,3.81921,2618.4,2617.9,7.3]
[1724766165748,3.81921,2618.4,2617.9,11.11984]
[1724766165904,3.81921,2618.4,2617.9,7.3]
[1724766166313,3.81936,2618.3,2617.9,7.3]
[1724766166505,3.81921,2618.4,2617.5,3.82034]
[1724766166735,3.81921,2618.4,2617.5,2.37692513]
[1724766166938,3.81979,2618.0,2617.4,9.7393]
[1724766167244,3.8203,2617.6,2617.1,7.3]
[1724766167805,3.8203,2617.6,2616.6,3.82175]
[1724766167806,3.82117,2617.0,2616.5,9.7393]
[1724766168009,3.82117,2617.0,2616.5,2.4393]
[1724766168203,3.82149,2616.8,2616.0,2.3809]
[1724766168409,3.82177,2616.6,2616.0,2.3809]
[1724766168850,3.82149,2616.8,2616.1,0.07643957]
[1724766169144,3.8218,2616.6,2616.0,2.61899]
[1724766169344,3.82193,2616.5,2616.0,2.61899]
[1724766169573,3.82193,2616.5,2616.1,0.261899]
[1724766170266,3.82161,2616.7,2616.1,0.261899]
[1724766170824,3.82273,2616.0,2615.5,2.3809]
[1724766171372,3.82278,2615.9,2615.5,2.3809]
[1724766171666,3.82273,2616.0,2615.2,0.1253103]
[1724766171667,3.82296,2615.8,2615.2,0.1253103]
[1724766172359,3.82308,2615.7,2615.3,0.07646186]
[1724766173063,3.82296,2615.8,2615.3,0.07646188]
[1724766173283,3.82365,2615.3,2615.2,0.1253103]
[1724766173428,11.47095,2615.3,2615.2,0.1253103]
[1724766173629,7.6473,2615.3,2615.2,0.1253103]
[1724766174140,11.47095,2615.3,2615.2,0.1253103]
[1724766174764,14.47095,2615.3,2615.2,0.1253103]
[1724766174978,16.15277092,2615.3,2615.2,0.1253103]
[1724766175273,7.6473,2615.3,2615.2,0.1253103]
[1724766176465,11.47095,2615.3,2615.2,0.1253103]
[1724766176625,7.6473,2615.3,2615.2,0.1253103]
[1724766178942,11.47095,2615.3,2615.2,0.1253103]
[1724766179133,13.000389,2615.3,2615.2,0.1253103]
[1724766179835,7.6473,2615.3,2615.2,0.1253103]
[1724766180542,11.47095,2615.3,2615.2,0.1253103]
[1724766181260,13.78865,2615.3,2615.2,0.1253103]
[1724766181470,26.41162134,2615.3,2615.2,0.1253103]
[1724766182569,11.11702134,2615.3,2614.3,0.005]
[1724766182870,23.02904134,2614.9,2614.3,0.005]
[1724766183030,26.02904134,2614.9,2614.3,0.005]
[1724766183230,29.85327134,2614.9,2614.3,0.005]
[1724766183735,30.40327134,2614.9,2614.8,1e-05]
[1724766184332,21.4442,2614.4,2614.3,0.005]
[1724766184559,24.9942,2614.4,2614.3,0.005]
[1724766184977,15.3016,2614.1,2614.0,0.5]
[1724766185181,28.33299534,2614.1,2614.0,0.5]
[1724766185677,26.909074,2614.1,2614.0,0.5]
[1724766185894,32.15839534,2614.1,2614.0,0.5]
[1724766186810,21.42815,2614.0,2613.9,1e-05]
[1724766187104,25.51136192,2614.0,2613.9,1e-05]
[1724766187416,23.10958326,2614.0,2613.9,1e-05]
[1724766188405,22.55958326,2614.0,2613.9,1e-05]
[1724766188722,7.65072,2614.2,2613.9,1e-05]
[1724766188867,3.82534,2614.2,2613.9,1e-05]
[1724766189369,7.6511,2614.0,2613.9,1e-05]
[1724766189566,11.47665,2614.0,2613.9,1e-05]
[1724766189808,18.48141734,2614.0,2613.9,1e-05]
[1724766189968,22.30696734,2614.0,2613.9,1e-05]
[1724766190170,26.13251734,2614.0,2613.9,1e-05]
[1724766190513,26.13251734,2614.0,2613.0,0.01]
[1724766190514,7.65374,2613.1,2613.0,0.01]
[1724766190678,17.42037126,2613.1,2613.0,0.01]
[1724766190869,16.59350126,2613.1,2613.0,0.01]
[1724766191266,20.42037126,2613.1,2613.0,0.01]
[1724766191705,11.34417992,2613.1,2613.0,0.01]
[1724766191916,15.17104992,2613.1,2613.0,0.01]
[1724766192083,24.79724126,2613.1,2613.0,0.01]
[1724766192482,28.62411126,2613.1,2613.0,0.01]
[1724766192697,28.62411126,2613.1,2612.6,0.12683043]
[1724766192698,20.55912134,2612.7,2612.6,0.12683043]
[1724766192900,21.10912134,2612.7,2612.6,0.12683043]
[1724766193234,27.42107134,2612.7,2612.6,0.12683043]
[1724766193372,30.42107134,2612.7,2612.6,0.12683043]
[1724766194018,30.37107134,2612.7,2612.6,0.12683043]
[1724766194312,31.06151126,2612.7,2612.6,0.12683043]
[1724766194515,27.23406126,2612.7,2612.6,0.12683043]
[1724766195017,29.63983992,2612.7,2612.6,0.12683043]
[1724766195511,25.81238992,2612.7,2612.6,0.12683043]
[1724766195719,29.63983992,2612.7,2612.6,0.12683043]
[1724766196332,25.81238992,2612.7,2612.6,0.12683043]
[1724766196836,25.0129213,2612.7,2612.6,0.12683043]
[1724766197199,24.9629213,2612.7,2612.6,0.12683043]
[1724766197598,22.4784213,2612.7,2612.6,0.12683043]
[1724766197937,18.6509713,2612.7,2612.6,0.12683043]
[1724766198115,15.31,2612.7,2612.6,0.12683043]
[1724766198522,11.48255,2612.7,2612.6,0.12683043]
[1724766199364,15.31,2612.7,2612.6,0.12683043]
[1724766199535,19.13745,2612.7,2612.6,0.12683043]
[1724766200055,15.31,2612.7,2612.6,0.12683043]
[1724766200282,17.223719,2612.7,2612.6,0.12683043]
[1724766200762,11.48255,2612.7,2612.6,0.12683043]
[1724766201055,15.31,2612.7,2612.6,0.12683043]
[1724766201346,7.6551,2612.7,2612.6,0.12683043]
[1724766201556,5.52383226,2612.7,2612.6,3.95443043]
[1724766201721,5.52383226,2612.7,2612.6,14.16910561]
[1724766201722,2.68245887,2612.7,2612.6,14.16910561]
[1724766201921,3.82573,2613.9,2612.6,4.04720561]
[1724766202139,3.82573,2613.9,2613.3,3.82655]
[1724766202339,3.82573,2613.9,2613.2,3.82659]
[1724766202549,3.82545,2614.1,2613.5,3.82627]
[1724766202852,3.82518,2614.3,2613.5,3.82627]
[1724766203054,3.82542,2614.1,2613.5,3.82627]
[1724766203262,3.82518,2614.3,2613.5,3.82618]
[1724766203507,3.82487,2614.5,2613.7,3.82584]
[1724766203666,3.82487,2614.5,2613.8,3.82584]
[1724766203868,3.82487,2614.5,2613.7,3.82584]
[1724766204070,3.82513,2614.3,2613.6,2.4146]
[1724766204297,3.82513,2614.3,2613.6,3.56362013]
[1724766204298,3.82526,2614.2,2613.6,3.56362013]
[1724766204499,3.82513,2614.3,2613.6,3.56362013]
[1724766204701,3.82513,2614.3,2613.7,4.56485101]
[1724766204967,7.60152134,2614.6,2613.2,2.4232]
[1724766205205,7.60152134,2614.6,2612.9,3.0]
[1724766205206,3.82563,2614.0,2612.9,3.0]
[1724766205427,2.2947,2613.9,2612.7,2.3093]
[1724766205566,3.82702,2613.0,2612.7,2.3093]
[1724766205917,3.82683,2613.2,2612.7,2.3093]
[1724766206142,5.24932134,2614.0,2612.7,2.3093]
[1724766206143,3.82608,2613.7,2612.9,3.82707]
[1724766206269,3.82608,2613.7,2612.7,6.1367]
[1724766206270,3.82675,2613.2,2612.7,2.3093]
[1724766206469,3.82702,2613.0,2612.7,2.3093]
[1724766206909,3.82634,2613.5,2612.3,2.3444]
[1724766207220,3.82717,2612.9,2612.3,6.1723]
[1724766207513,3.82717,2612.9,2612.3,2.3444]
[1724766207697,7.65446,2612.9,2612.3,2.3444]
[1724766208006,3.82717,2612.9,2612.3,2.3444]
[1724766208210,3.82717,2612.9,2612.3,6.17241]
[1724766208380,3.82717,2612.9,2612.3,2.3444]
[1724766208581,3.82717,2612.9,2612.3,5.3444]
[1724766208802,3.82716,2612.9,2612.3,5.3444]
[1724766208999,3.82716,2612.9,2612.3,2.3444]
[1724766209206,3.82716,2612.9,2612.3,6.17244]
[1724766209506,3.82692,2613.1,2612.4,3.0]
[1724766209717,3.82659,2613.3,2612.4,3.0]
[1724766209900,3.82635,2613.5,2612.9,3.82714]
[1724766210082,3.82607,2613.7,2613.0,4.209624]
[1724766210285,3.82644,2613.4,2612.8,3.8272]
[1724766210500,3.82614,2613.6,2612.9,0.63353465]
[1724766210706,7.45,2614.0,2613.0,3.82697]
[1724766210707,3.82592,2613.8,2613.0,3.82697]
[1724766211021,3.82592,2613.8,2613.2,3.8267]
[1724766211227,7.45,2614.0,2613.1,0.44605047]
[1724766211513,3.82619,2613.6,2612.9,0.63353465]
[1724766211822,3.82652,2613.4,2612.8,6.82724]
[1724766212107,7.45,2614.0,2612.6,0.12683043]
[1724766212108,3.82683,2613.2,2612.6,0.12683043]
[1724766212308,11.27618,2613.6,2612.6,0.12683043]
[1724766212520,3.82698,2613.1,2612.6,0.12683043]
[1724766212972,3.82675,2613.2,2612.6,0.12683043]
[1724766213169,3.82687,2613.1,2612.6,0.12683043]
[1724766213472,3.82734,2612.8,2612.6,0.12683043]
[1724766213675,7.6549,2612.7,2612.6,0.12683043]
[1724766213909,3.82745,2612.7,2612.6,0.12683043]
[1724766214125,3.82744,2612.8,2612.6,0.12683043]
[1724766214285,11.27662,2613.3,2612.6,0.12683043]
[1724766214477,7.6549,2612.7,2612.6,0.12683043]
[1724766214695,3.82745,2612.7,2612.6,0.12683043]
[1724766214933,3.8271,2613.0,2612.6,0.12683043]
[1724766215232,3.82745,2612.7,2612.6,0.12683043]
[1724766215393,3.82732,2612.8,2612.6,0.12683043]
[1724766215589,3.82709,2613.0,2612.6,0.12683043]
[1724766215888,3.82745,2612.7,2612.6,0.12683043]
[1724766216092,7.6549,2612.7,2612.6,0.12683043]
[1724766216337,1.127662,2613.2,2612.6,0.12683043]
[1724766216338,3.82732,2612.8,2612.6,0.12683043]
[1724766216692,3.8271,2613.0,2612.6,0.12683043]
[1724766216892,7.45,2613.3,2612.7,2.421]
[1724766217092,11.27658,2613.3,2612.8,4.08205304]
[1724766217432,3.82674,2613.2,2612.8,0.25478304]
[1724766217589,7.45,2613.3,2612.8,0.25478304]
[1724766217797,3.826,2613.7,2613.1,3.82682]
[1724766217996,3.82622,2613.6,2613.1,0.39033635]
[1724766218194,3.82622,2613.6,2613.1,0.4668655]
[1724766218415,3.82591,2613.8,2613.1,0.4668655]
[1724766218416,3.82591,2613.8,2613.2,4.63869555]
[1724766218706,3.82542,2614.1,2613.5,3.82626]
[1724766219007,3.82535,2614.2,2613.5,3.90270825]
[1724766219223,3.82484,2614.5,2613.8,3.82584]
[1724766219435,3.82484,2614.5,2613.9,3.82567]
[1724766219606,7.45,2614.8,2613.6,0.07651347]
[1724766219607,11.27443,2614.8,2614.0,3.90204746]
[1724766219932,3.82474,2614.6,2614.2,2.416]
[1724766220099,3.82466,2614.7,2614.2,2.416]
[1724766220100,3.82483,2614.5,2614.2,2.416]
[1724766220650,7.45,2614.8,2613.8,3.0]
[1724766220935,3.8254,2614.2,2613.8,3.0]
[1724766221296,3.82537,2614.2,2613.8,3.0]
[1724766221490,7.45,2614.8,2613.7,2.4405]
[1724766221491,3.8254,2614.1,2613.7,2.4405]
[1724766222529,3.8249,2614.5,2613.9,3.82567]
[1724766222719,7.64925,2614.7,2614.1,3.82539]
[1724766222925,7.64925,2614.7,2614.1,0.765106]
[1724766222926,3.8246,2614.7,2614.1,0.765106]
[1724766223149,3.8246,2614.7,2614.1,4.590416]
[1724766223545,3.8247,2614.6,2614.1,4.590416]
[1724766223736,3.8247,2614.6,2614.1,0.765106]
[1724766223933,3.82398,2615.1,2614.1,0.765106]
[1724766223934,3.82483,2614.5,2614.1,0.765106]
[1724766224166,3.82483,2614.5,2613.9,3.82561]
[1724766224328,3.82483,2614.5,2613.9,3.8256]
[1724766224530,7.64926,2614.7,2614.0,3.82553]
[1724766224724,3.82478,2614.6,2614.1,0.7727631]
[1724766225459,3.82371,2615.3,2614.2,2.5458993]
[1724766225656,11.87246908,2615.8,2614.9,2.4694]
[1724766225907,3.82403,2615.1,2614.5,2.4694]
[1724766226074,11.27354,2615.4,2614.5,5.4694]
[1724766226271,3.8244,2614.8,2614.5,2.4694]
[1724766226566,3.82467,2614.6,2614.3,3.0]
[1724766226864,3.82467,2614.6,2614.2,2.3697]
[1724766227649,3.82445,2614.8,2614.2,2.3697]
[1724766227849,3.8247,2614.6,2614.2,2.3697]
[1724766228261,2.4954,2615.3,2614.2,7.49702]
[1724766228262,3.8243,2614.9,2614.2,7.49702]
[1724766228435,2.4954,2615.3,2613.6,7.3]
[1724766228436,6.31911,2615.3,2613.6,7.3]
[1724766228638,3.82556,2614.0,2613.4,2.3586]
[1724766228868,3.82556,2614.0,2613.4,2.59446]
[1724766229167,3.82532,2614.2,2613.0,2.3586]
[1724766229168,3.82617,2613.6,2613.0,2.3586]
[1724766229354,3.82617,2613.6,2613.0,6.18558]
[1724766229673,3.82643,2613.4,2613.0,2.3586]
[1724766229876,3.82643,2613.4,2613.0,3.7326553]
[1724766230087,3.82571,2613.9,2613.1,3.82685]
[1724766230234,3.82528,2614.2,2613.6,2.4397]
[1724766230575,3.82555,2614.0,2613.6,2.4397]
[1724766231097,3.82542,2614.1,2613.6,2.4397]
[1724766231388,3.82542,2614.1,2613.6,2.68367]
[1724766231541,3.82528,2614.2,2613.6,2.68367]
[1724766231877,3.82543,2614.1,2613.6,2.68367]
[1724766232770,3.82511,2614.3,2613.6,2.68367]
[1724766232973,3.82458,2614.7,2612.9,3.0]
[1724766233177,3.82607,2613.7,2612.7,2.418]
[1724766233438,3.82623,2613.6,2612.8,3.82721]
[1724766233567,3.8261,2613.7,2613.0,3.827]
[1724766233772,3.82616,2613.6,2613.0,3.827]
[1724766233946,3.8257,2613.9,2613.2,2.2854]
[1724766234142,3.8257,2613.9,2613.3,0.22854]
[1724766234345,3.8257,2613.9,2613.4,3.82642]
[1724766234586,3.8257,2613.9,2613.3,0.22854]
[1724766234805,3.8257,2613.9,2613.3,4.05511]
[1724766235108,3.82557,2614.0,2613.4,4.91963883]
[1724766235599,3.82518,2614.3,2613.6,3.8261]
[1724766235809,3.82554,2614.1,2613.5,2.2854]
[1724766236032,7.45,2614.3,2613.0,2.2854]
[1724766236180,3.82682,2613.2,2613.0,2.2854]
[1724766236356,3.82653,2613.4,2613.0,2.2854]
[1724766236561,7.65218,2613.7,2613.0,6.1123]
[1724766236761,3.8263,2613.5,2613.1,0.993935]
[1724766237374,3.82605,2613.7,2613.1,0.993935]
[1724766237707,3.82673,2613.2,2612.7,2.2543]
[1724766237912,11.27578,2613.9,2612.7,2.2543]
[1724766237913,3.82712,2613.0,2612.7,2.2543]
[1724766238065,7.65359,2613.2,2612.6,0.12683043]
[1724766238422,3.82632,2613.5,2612.6,0.12683043]
[1724766238574,2.4546,2613.7,2612.6,1.09494347]
[1724766238575,3.8268,2613.2,2612.6,1.09494347]
[1724766238774,3.82711,2613.0,2612.6,1.09494347]
[1724766239089,7.6536,2613.2,2612.6,1.17148582]
[1724766239259,7.45,2613.9,2612.7,1.1414667]
[1724766239260,3.82649,2613.4,2612.7,1.1414667]
[1724766239466,3.82649,2613.4,2612.9,3.82714]
[1724766239700,3.82599,2613.7,2613.1,6.08116]
[1724766239910,3.82624,2613.6,2613.1,2.2543]
[1724766240209,3.82654,2613.4,2613.1,2.2543]
[1724766240506,7.45,2614.5,2613.2,0.07653033]
[1724766240669,3.826,2613.7,2613.2,7.57211977]
[1724766240867,3.82637,2613.5,2613.2,0.27211977]
[1724766241115,3.82706,2613.0,2612.6,2.38113043]
[1724766241434,3.82702,2613.0,2612.6,2.38113043]
[1724766241630,3.82681,2613.2,2612.6,2.38113043]
[1724766241831,3.82695,2613.1,2612.6,2.38113043]
[1724766242037,3.82695,2613.1,2612.7,0.62088304]
[1724766242210,7.65447,2612.9,2612.6,0.12683043]
[1724766242568,7.6549,2612.7,2612.6,0.12683043]
[1724766242713,3.82745,2612.7,2612.6,0.12683043]
[1724766244254,3.82741,2612.8,2612.6,0.12683043]
[1724766244415,3.82745,2612.7,2612.6,0.12683043]
[1724766244609,7.65484,2612.8,2612.6,0.12683043]
[1724766244830,13.79889,2612.1,2612.0,0.002973]
[1724766245370,7.65666,2612.1,2612.0,0.002973]
[1724766245529,3.82833,2612.1,2612.0,0.002973]
[1724766245729,7.65666,2612.1,2612.0,0.002973]
[1724766246167,3.82814,2612.3,2612.0,0.002973]
[1724766246367,7.65561,2612.5,2612.0,0.002973]
[1724766246553,3.82805,2612.3,2612.0,0.002973]
[1724766246764,3.82833,2612.1,2612.0,0.002973]
[1724766246928,3.82745,2612.7,2612.0,0.002973]
[1724766246929,7.65631,2612.3,2612.0,0.002973]
[1724766247268,3.82833,2612.1,2612.0,0.002973]
[1724766247431,7.65666,2612.1,2612.0,0.002973]
[1724766249334,11.48499,2612.1,2612.0,0.002973]
[1724766249539,12.633489,2612.1,2612.0,0.002973]
[1724766249881,7.65666,2612.1,2612.0,0.002973]